Workbook

Sheet Aloitus
A2: Kaavojen käytön aloittaminen
A3: Näiden helppojen ohjeiden avulla voit pääset alkuun Excelin (maailman tehokkaimman taulukkolaskentaohjelman) kaavojen ja funktioiden käytössä.
A4: Voit palata alkuun painamalla Ctrl + HOME. Voit aloittaa esittelyn painamalla Ctrl + PAGE DOWN.

Sheet Perusasiat
A1: Perusteet: laskutoimitukset Excelissä
A2: Voit tehdä Excelissä laskuja yhteen, vähentää, kertoa ja jakaa ilman mitään funktioita. Tarvitset vain perusoperaattoreita: +, -, *, /. Kaikki kaavat alkavat yhtäläisyysmerkillä (=). | C2: Käytettävät luvut: | E2: Laskutoimitus: | F2: Kaavat: | G2: Vastaukset:
A3: Jos haluat laskea yhteen, valitse solu F3, kirjoita =C3+C4 ja paina sitten Enteriä. | C3: 1 | E3: yhteenlasku (+) | G3: =C3+C4 -> 3
A4: Jos haluat vähentää, valitse solu F4, kirjoita =C3-C4 ja paina sitten Enteriä. | C4: 2 | E4: vähennyslasku (-) | G4: =C3-C4 -> -1
A5: Jos haluat kertoa, valitse solu F5, kirjoita =C3*C4 ja paina sitten Enteriä. | E5: kertolasku (*) | G5: =C3*C4 -> 2
A6: Jos haluat jakaa, valitse solu F6, kirjoita =C3/C4 ja paina sitten Enteriä. | E6: jakolasku (/) | G6: =C3/C4 -> 0.5
A7: Tiesitkö tämän? Kun vaihdat solujen C3 ja C4 lukuja tässä, kaavan tulokset muuttuvat automaattisesti. | E7: potenssilasku (^) | G7: =C3^C4 -> 1
A8: LISÄOPPIA: Voit korottaa arvoa potenssiin sirkumfleksimerkillä (^), esimerkiksi =A1^A2. Voit kirjoittaa tämän merkin painamalla Vaihto+6. Kirjoita soluun F7 =C3^C4.
A9: Saat lisätietoja alla
A10: Seuraava vaihe
A11: Lisätietoja kaavoista, soluista ja alueista
A12: Excel koostuu yksittäisistä soluista, jotka on ryhmitelty riveille ja sarakkeisiin. Rivit on merkitty numeroilla ja sarakkeet kirjaimilla. Rivejä on yli miljoona ja sarakkeita yli 16 000. Voit lisätä niihin kaikkiin kaavoja ja funktioita.
A13: Kaavat voivat sisältää soluviittauksia, soluviittausalueita, operaattoreita ja vakioita. Alla on esimerkkejä kaavoista: =A1+B1 =10+20 =SUMMA(A1:A10)
A14: Yllä käytimme kolmannessa esimerkissä SUMMA-funktiota. Funktio on valmiiksi määritetty komento, joka laskee arvon tai arvot tietyllä tavalla ja palauttaa tuloksen. SUMMA-funktio esimerkiksi ottaa määrittämäsi soluviittaukset tai -alueet ja laskee ne yhteen. Tässä esimerkissä se laskee yhteen solut A1–A10. Excelissä on yli 400 funktiota, joihin voit tutustua Kaavat-välilehdessä.
A15: Funktioita sisältävät kaavat alkavat yhtäläisyysmerkillä, jonka perässä on funktion nimi ja sen argumentit (arvot, joilla funktio laskee) sulkeisiin suljettuna.
A16: Voit vahvistaa kaavan painamalla Enteriä. Kun painat Enteriä, Excel laskee kaavan ja näyttää sen tuloksen solussa. Jos haluat nähdä itse kaavan, voit tarkistaa sen valintanauhan alla olevalta kaavariviltä tai voit siirtyä muokkaustilaan painamalla F2-näppäintä, jolloin näet kaavan solussa. Kun haluat viimeistellä kaavan ja laskea tuloksen, paina Enteriä uudelleen.
A17: Joidenkin kaavojen selityksiä
A18: =10+20 on kaava, jossa 10 ja 20 ovat vakioita ja +-merkki on operaattori.
A19: =SUMMA(A1:A10) on kaava, jossa SUMMA on funktion nimi, jossa kaavan argumentit ovat sulkeissa ja jossa A1:A10 on funktion solualue.
A20: =SUMMA(A1:A10;C1:C10) on kaava, jossa SUMMA on funktion nimi, jossa kaavan argumentit ovat sulkeissa ja jossa A1:A10;C1:C10 ovat funktion solualueet pilkulla erotettuna.
A21: HYÖDYLLISIÄ TIETOJA: Vakiot ovat arvoja, jotka annat itse soluihin tai kaavoihin. Vaikka =10+20 saattaa antaa saman tuloksen kuin =A1+B1, vakioiden lisääminen kaavoihin ei ole suositeltu tapa. Miksi? Tämä johtuu siitä, että et näe vakiota helposti valitsematta solua ja tarkistamatta vakiota siitä. Tämän johdosta muokkaaminen voi olla vaikeaa myöhemmin. On paljon helpompi lisätä vakiot soluihin, joissa voit muokata niitä helposti. Tällä tavalla voit myös viitata niihin kaavoissasi. Esimerkki: Valitse alta keltainen solu, jonka arvo on 12. Näet, että olemme käyttäneet SUMMA-funktiota solualueella. Emme kirjoittaneet suoraan kaavaan arvoja 4 ja 8.
A22: Edellinen
A23: Seuraava
A24: Lisää tietoja verkossa
A25: Excelin käyttö laskimena
A26: Excelin kaavojen yleiskatsaus
A27: Excelin funktiot (luokittain)
A28: Excelin funktiot (aakkosjärjestyksessä)
A29: Maksuton Excel-koulutus verkossa
J40: Arvot
J41: 4
J42: 8
J43: =SUM(J41:J42) -> 12

Sheet Funktioiden esittely
A1: Funktioiden esittely
A2: Funktioiden avulla voit tehdä monia asioita, esimerkiksi suorittaa matemaattisia laskutoimituksia, etsiä arvoja ja jopa laskea päivämääriä sekä kellonaikoja. Kokeillaan nyt muutamaa tapaa laskea arvoja yhteen SUMMA-funktiolla. | C2: Hedelmät | D2: Määrä | F2: Liha | G2: Määrä
A3: Kirjoita hedelmien Määrä-sarakkeeseen (solu D7) =SUMMA(D3:D6) tai kirjoita =SUMMA(, valitse alue hiirellä ja paina Enteriä. Tämä laskee yhteen arvot soluista D3, D4, D5 ja D6. Tuloksen pitäisi olla 170. | C3: Omenat | D3: 50 | F3: Naudanliha | G3: 50
A4: Kokeillaan nyt Automaattinen summa. Valitse Liha-sarakkeen solu (G7) ja valitse sitten Kaavat > Automaattinen summa > SUMMA. Näet, että Excel lisää kaavan automaattisesti puolestasi. Vahvista se painamalla Enteriä. Automaattinen summa -toiminto sisältää kaikki yleisimmät funktiot. | C4: Appelsiinit | D4: 20 | F4: Kana | G4: 30
A5: Tässä on kätevä pikanäppäinkomento. Valitse solu D15, paina Alt = ja paina sitten Enteriä. Tämä lisää SUMMA-funktion automaattisesti. | C5: Banaanit | D5: 60 | F5: Sianliha | G5: 10
A6: Saat lisätietoja alla | C6: Sitruunat | D6: 40 | F6: Kala | G6: 50
A7: LISÄOPPIA Kokeile LASKE-funktiota millä tahansa jo aiemmin kokeillulla tavalla. LASKE-funktio laskee solualueelta niiden solujen määrän, jotka sisältävät lukuja. | C7: SUMMA > | D7: =SUM(D3:D6) -> 170 | F7: SUMMA >
A8: Seuraava vaihe
A9: Lisätietoja funktioista | C9: Kohde | D9: Määrä | F9: Kohde | G9: Määrä
A10: Siirry Kaavat-välilehteen ja selaa funktiokirjastoa, jossa funktiot on lueteltu luokittain (esimerkiksi Teksti, Päivämäärä ja kellonaika jne.). Lisää funktio -toiminnolla voit etsiä funktioita nimen perusteella ja käynnistää ohjatun funktiotoiminnon, jolla voit luoda oman kaavan. Kun aloitat funktion nimen kirjoittamisen annettuasi yhtäläisyysmerkin (=), Excel käynnistää IntelliSense-toiminnon, joka näyttää kaikki funktiot, jotka alkavat kirjoittamillasi kirjaimilla. Kun löydät haluamasi funktion, paina Sarkain-näppäintä: Excel täydentää funktion nimen automaattisesti ja lisää ensimmäisen sulkumerkin puolestasi. Se näyttää myös pakolliset ja vapaaehtoiset argumentit. Tutustutaan nyt muutamien funktioiden rakenteeseen. SUMMA-funktio muotoillaan seuraavasti: | C10: Leivät | D10: 50 | F10: Leivät | G10: 50
A11: Jos SUMMA-funktio osaisi puhua, se sanoisi palauttavansa solujen D35–D38-summan ja koko sarakkeen H summan. SUMMA on funktion nimi, D35:D38 on ensimmäisen alueen argumentti, mikä on miltei aina pakollinen, ja H:H on toisen alueen argumentti (argumentit on eroteltu toisistaan pilkulla). Kokeillaan nyt funktiota, joka ei edellytä yhtään argumenttia. | C11: Donitsit | D11: 100 | F11: Donitsit | G11: 100
A12: TÄMÄ.PÄIVÄ-funktio palauttaa nykyisen päivämäärän. Arvo päivitetään automaattisesti, kun Excel laskee funktion uudelleen eri päivänä. | C12: Pikkuleivät | D12: 40 | F12: Pikkuleivät | G12: 40
A13: TIESITKÖ TÄMÄN? Valitse nämä solut. Etsi sitten Excel-ikkunan oikean alakulman riviltä SUMMA: 170. Tätä riviä kutsutaan tilariviksi. Siitä näet nopeasti summan ja muita tietoja valitusta solusta tai alueesta. | C13: Kakut | D13: 50 | F13: Kakut | G13: 50
A14: TÄRKEÄ YKSITYISKOHTA Kaksoisnapsauta tätä solua. Huomaat loppupuolella arvon 100. Vaikka kaavoihin voi sisällyttää tällaisia lukuarvoja, emme suosittele sitä, ellei se ole ehdottoman välttämätöntä. Tätä kutsutaan vakioksi, ja on helppo unohtaa sen sisältyvän kaavaan. Suosittelemme mieluummin viittaamaan johonkin toiseen soluun, esimerkiksi soluun F51. Siellä luku on helposti nähtävissä, eikä se katoa kaavan sisään. | C14: Piirakat | D14: 20 | F14: Piirakat | G14: 20
A15: Lisää tietoja verkossa | C15: SUMMA > | F15: LASKE >
A16: Kaikki SUMMA-funktiosta
A17: Lukujen laskeminen yhteen Automaattinen summa -toiminnolla
A18: Kaikki LASKE-funktiosta
A19: Maksuton Excel-koulutus verkossa
A20: Takaisin alkuun
A21: Seuraava vaihe
C34: Hedelmät | D34: Määrä
C35: Omenat | D35: 50
C36: Appelsiinit | D36: 20
C37: Banaanit | D37: 60
C38: Sitruunat | D38: 40
C39: SUMMA > | D39: =SUM(D35:D38) -> 170
C44: Kohde | D44: Määrä
C45: Autot | D45: 20
C46: Kuormurit | D46: 10
C47: Polkupyörät | D47: 10
C48: Luistimet | D48: 40
D50: Yhteensä: | F50: Lisäarvo: | G50: Uusi kokonaismäärä
D51: =SUM(D45:D48,100) -> 180 | F51: 100 | G51: =SUM(D45:D48,F51) -> 180

Sheet KESKIARVO
A1: KESKIARVO-funktio
A2: KESKIARVO-funktiolla voit laskea solualueen lukujen keskiarvon. | C2: Hedelmät | D2: Määrä | F2: Liha | G2: Määrä
A3: Valitse solu D7 ja lisää sitten KESKIARVO-funktio Automaattinen summa -toiminnolla. | C3: Omenat | D3: 50 | F3: Naudanliha | G3: 50
A4: Valitse nyt solu G7 ja lisää KESKIARVO-funktio kirjoittamalla itse =KESKIARVO(G3:G6). | C4: Appelsiinit | D4: 20 | F4: Kana | G4: 30
A5: Solussa D15 voit joko käyttää Automaattinen summa -toimintoa tai kirjoittaa toisen KESKIARVO-funktion. | C5: Banaanit | D5: 60 | F5: Sianliha | G5: 10
A6: TIESITKÖ TÄMÄN? Kun valitset minkä tahansa lukualueen, näet sen keskiarvon heti tilariviltä. | C6: Sitruunat | D6: 40 | F6: Kala | G6: 50
A7: Siirry edelliseen laskentataulukkoon | C7: KESKIARVO > | F7: KESKIARVO >
A8: Siirry seuraavaan laskentataulukkoon
A9: LISÄOPPIA Kokeile tässä MEDIAANI- tai MOODI-funktiota. MEDIAANI antaa sinulle joukon keskimmäisen arvon, kun taas MOODI antaa useimmin esiintyvän arvon. | C9: Kohde | D9: Määrä | F9: Kohde | G9: Määrä
A10: Linkit lisätietoihin verkossa | C10: Leivät | D10: 50 | F10: Leivät | G10: 50
A11: Jos haluat lukea lisätietoja KESKIARVO-funktiosta verkosta, valitse tämä | C11: Donitsit | D11: 100 | F11: Donitsit | G11: 100
A12: Jos haluat lukea lisätietoja MEDIAANI-funktiosta verkosta, valitse tämä | C12: Pikkuleivät | D12: 40 | F12: Pikkuleivät | G12: 40
A13: Jos haluat lukea lisätietoja MOODI-funktiosta verkosta, valitse tämä | C13: Kakut | D13: 50 | F13: Kakut | G13: 50
A14: Jos haluat lukea lisätietoja maksuttomasta Excel-koulutuksesta verkosta, valitse tämä | C14: Piirakat | D14: 20 | F14: Piirakat | G14: 20
C15: KESKIARVO >

Sheet MIN & MAKS
A1: MIN- ja MAKS-funktiot
A2: MIN-funktiolla voit hakea solualueen pienimmän arvon. | C2: Hedelmät | D2: Määrä | F2: Liha | G2: Määrä
A3: MAKS-funktiolla voit hakea solualueen suurimman arvon. | C3: Omenat | D3: 50 | F3: Naudanliha | G3: 50
A4: Valitse solu D7 ja lisää sitten MIN-funktio ohjatulla Automaattinen summa -toiminnolla. | C4: Appelsiinit | D4: 20 | F4: Kana | G4: 30
A5: Valitse nyt solu G7 ja lisää MAKS-funktio kirjoittamalla itse =MAKS(G3:G6). | C5: Banaanit | D5: 60 | F5: Sianliha | G5: 10
A6: Solussa D15 voit joko käyttää ohjattu Automaattinen summa -toimintoa tai kirjoittaa MIN- tai MAKS-funktion itse. | C6: Sitruunat | D6: 40 | F6: Kala | G6: 50
A7: Lisää tietoja verkossa | C7: MIN > | F7: MAKS >
A8: Kaikki MIN-funktiosta
A9: Kaikki MAKS-funktiosta | C9: Kohde | D9: Määrä | F9: Kohde | G9: Määrä
A10: Maksuton Excel-koulutus verkossa | C10: Leivät | D10: 50 | F10: Leivät | G10: 50
A11: HYÖDYLLISIÄ TIETOJA Voit käyttää MIN- ja MAKS-funktioita useiden alueiden tai arvojen kanssa, kun haluat näyttää arvoista pienemmän tai suuremman. Esimerkiksi =MIN(A1:A10;B1:B10) tai =MAKS(A1:A10;B1), jossa B1 sisältää raja-arvon, esimerkiksi arvon 10, jolloin kaava ei koskaan palauta 10:tä pienempää tulosta. | C11: Donitsit | D11: 100 | F11: Donitsit | G11: 100
C12: Pikkuleivät | D12: 40 | F12: Pikkuleivät | G12: 40
C13: Kakut | D13: 50 | F13: Kakut | G13: 50
C14: Piirakat | D14: 20 | F14: Piirakat | G14: 20
C15: MIN tai MAKS > | G15: =MIN(G10:G14,10) -> 10

Sheet Päivämäärä ja kellonaika
A1: Päivämääräfunktiot
A2: Excel voi antaa sinulle nykyisen päivämäärän tietokoneesi alueasetusten mukaisesti. Voit myös suorittaa päivämäärille yhteen- ja vähennyslaskuja.
A3: Tutustu TÄMÄ.PÄIVÄ-funktioon, joka palauttaa nykyisen päivämäärän. Nämä ovat käytössä olevia muuttuvia funktioita, joten kun avaat työkirjan uudelleen huomenna, näet huomisen päivämäärän. Kirjoita soluun D6 =TÄMÄ.PÄIVÄ().
A4: Päivämäärien vähennyslaskut: Anna syntymäpäiväsi muodossa P\.K\.VV soluun D7 ja anna Excelin laskea, montako päivää siihen on. Voit tehdä tämän kirjoittamalla soluun D8 kaavan =D7-D6.
A5: Päivämäärien yhteenlaskut: Jos haluat tietää esimerkiksi laskun eräpäivän tai kirjaston kirjan palautuspäivän, voit tehdä päivämäärien yhteenlaskun. Anna soluun D10 jokin satunnainen päivien määrä. Kirjoitamme sitten soluun D11 =D6+D10, jolla voimme laskea erä- tai palautuspäivän tästä päivästä lukien. | C5: Päivämääräfunktiot
A6: HYÖDYLLISIÄ TIETOJA Excelissä ajanlasku alkaa 1. tammikuuta 1900. Kellonajat lasketaan lukuina osina päivästä. 1.1.2017 klo 12:30 tallennetaan siis Excelissä lukuna 42736,5208 Jos näet kellonajan tai päivämäärä tällaisena lukuna, paina Ctrl+1, valitse Luku ja valitse sitten päivämäärä- ja aikamuoto. | C6: Päivämäärä tänään: | F6: =IF(D6=TODAY(),"Oikein!","") -> 
A7: TÄRKEÄ YKSITYISKOHTA Jos haluat, että Excel ei näytä negatiivista lukua, jos et ole vielä antanut syntymäpäivääsi, voit käyttää seuraavaa JOS-funktiota: =JOS(D7="";"";D7-D6). Käytännössä tämä tarkoittaa seuraavaa: JOS D7 on yhtä suuri kuin tyhjä, älä näytä mitään, muussa tapauksessa näytä D7 miinus D6. | C7: Oma syntymäpäivä:
A8: Kellonaikafunktiot | C8: Päivien määrä syntymäpäivääsi: | D8: =D7-D6 -> 0
A9: Excel voi antaa sinulle nykyisen kellonajan tietokoneesi alueasetusten mukaisesti. Voit myös suorittaa kellonajoille yhteen- ja vähennyslaskuja. Voit esimerkiksi seurata sitä, kuinka monta tuntia työntekijä työskentelee viikoittain ja laskea hänen palkkansa sekä ylityökorvauksensa.
A10: Kirjoita soluun D28 =NYT(). Excel palauttaa nykyisen kellonajan, joka päivittyy aina, kun funktio lasketaan uudelleen. Jos haluat vaihtaa aikamuotoa, paina Ctrl+1, valitse Luku > Aika ja valitse haluamasi aikamuoto. | C10: Maksuaikaa jäljellä päivinä:
A11: Kahden kellonajan välisen ajan laskeminen: Olemme kirjoittaneet soluun D36 kaavan =((D35-D32)-(D34-D33))*24, joka laskee työntekijän työajan aloitus- ja päättymisajan perusteella ja vähentää työajasta lounastauot. *24 kaavan lopussa muuntaa päivän lukumuotoon Excelille. Sinun täytyy kuitenkin muotoilla solu luvuksi. Voit tehdä tämän valitsemalla Aloitus > Muotoile > Solut (Ctrl+1) > Luku > Luku > Desimaalit: 2. | C11: Laskun eräpäivä: | D11: =D6+D10 -> 00:00:00
A12: Jos tämä kaava osaisia puhua, se sanoisi seuraavaa: Ota töistä lähtemisaika ja vähennä siitä töihin saapumisaika, vähennä sitten lounastauolle lähtemisaika lounaalta palaamisajasta ja kerro sitten 24:llä, jotta Excel muuntaa tuloksen tunneiksi. Toisin sanoen kaava kuuluu seuraavasti: =((Töiden päättymisaika-Töiden päättymisaika)-(Lounaalta paluun aika-Lounaalle lähdön aika))*24.
A13: Edellinen
A14: Seuraava
A15: Lisää tietoja verkossa
A16: Kaikki TÄMÄ.PÄIVÄ-funktiosta
A17: Kaikki NYT-funktiosta
A18: Kaikki PÄIVÄYS-funktiosta
A19: Maksuton Excel-koulutus verkossa
C27: Kellonaikafunktiot
C28: Nykyinen aika:
C31: Päivittäiset työtunnit
C32: Töiden alkamisaika: | D32: 08:00:00
C33: Lounaalle lähdön aika: | D33: 12:00:00
C34: Lounaalta paluun aika: | D34: 13:00:00
C35: Töiden päättymisaika: | D35: 17:00:00
C36: Tunteja yhteensä: | D36: =((D35-D32)-(D34-D33))*24 -> 8
C45: Kiinteä päivämäärä ja aika
C46: Päivämäärä: | D46: 2017-09-27
C47: Aika: | D47: 08:52:00

Sheet Tekstin ja lukujen yhdistäminen
A1: Eri solujen tekstin yhdistäminen
A2: Törmäät varmasti Excelissä usein tilanteisiin, joissa haluat liittää eri solujen tekstiä. Tämä on hyvin yleinen tilanne, jossa sinulla on etu- ja sukunimiä ja haluat yhdistää ne etu- ja sukunimen yhdistelmäksi tai koko nimiksi. Onneksi tämä onnistuu Excelissä et-merkillä (&), jonka voit lisätä painamalla Vaihto+7. | C2: Etunimi | D2: Sukunimi | E2: Sukunimi, Etunimi | F2: Koko nimi
A3: Yhdistä etu- ja sukunimet kirjoittamalla soluun E3 =D3&C3. | C3: Liisi | D3: Seppä | E3: =D3&", "&C3 -> Seppä, Liisi | F3: =C3&" "&D3 -> Liisi Seppä
A4: SeppäLiisi ei kuitenkaan näytä kovinkaan hyvältä. Siihen täytyy lisätä pilkku ja välilyönti. Tämä on mahdollista, kun luomme uuden tekstimerkkijonon lainausmerkkien avulla. Kirjoita nyt =D3&", "&C3. &", "& -osa lisää pilkun ja välilyönnin solujen tekstiin. | C4: Harri | D4: Pohjonen
A5: Jos haluat luoda koko nimen, sinun täytyy yhdistää etu- ja sukunimi ja lisätä niiden välillä välilyönti ilman pilkkua. Kirjoita soluun F3 =C3&" "&D3. | C5: Manu | D5: Kotamäki
A6: Saat lisätietoja alla | C6: Maria | D6: Junttila
A7: Seuraava | C7: Simo | D7: Torppala
A8: Tekstin ja lukujen käyttäminen yhdessä | C8: Lassi | D8: Nissilä
A9: Nyt yhdistämme &-merkin avulla lukuja ja tekstiä, ei pelkästään tekstiä. Katso soluja C28:D29. Näet, että päivämäärät ja kellonajat ovat eri soluissa. Voit yhdistää ne &-merkillä, kuten soluissa C32:C33. Ne eivät kuitenkaan näytä hyvältä, vai mitä? Excel ei valitettavasti tiedä, miten haluat muotoilla luvut, joten ne näytetään perusmuodossaan (joka on tässä tapauksessa Sarjat). Meidän täytyy kertoa Excelille, miten kaavan lukuosio muotoillaan, jotta se näyttään luvut tuloksena saatavassa tekstimerkkijonossa haluamallamme tavalla. Voit tehdä tämän TEKSTI-funktiolla ja muotoilukoodilla. | C9: Roope | D9: Suomu
A10: Kirjoita soluun C36 =C28&" "&TEKSTI(D28;"P\.K\.VVVV"). P\.K\.VVVV on Yhdysvalloissa käytetty päivämäärämuotoilu (esimerkiksi 25.09.2017). | C10: Elsa | D10: Mäkinen
A11: Kirjoita soluun C37 =C29&" "&TEKSTI(D29;"T:MM"). T:MM on Yhdysvalloissa käytetty ajan esitysmuoto (esimerkiksi 13:30).
A12: TIESITKÖ TÄMÄN? Kaavojen, etenkin isojen kaavojen, lukeminen voi olla joskus vaikeaa, mutta voit erotella kaavojen osat välilyönneillä seuraavaan tapaan: =C28 & " " & TEKSTI(D28,"P\.K\.VVVV")
A13: KANNATTAA KOKEILLA Jos et tiedä, mitä muotoilukoodia haluat käyttää, paina Ctrl+1 ja valitse Luku. Näin voit muotoilla minkä tahansa solun millä tahansa haluamallasi tavalla. Valitse sitten Oma-luokka. Voit kopioida näytetyn muotoilukoodin takaisin kaavaasi.
A14: Lisää tietoja verkossa
A15: Kaikki TEKSTI-funktiosta
A16: Tekstin ja lukujen yhdistäminen
A17: Maksuton Excel-koulutus verkossa
C27: Tekstin ja lukujen käyttäminen
C28: Päivämäärä tänään: | D28: =TODAY() -> 2019-10-10
C29: Nykyinen aika: | D29: =NOW() -> 43748.47493
C31: Tekstin ja lukujen yhdistäminen
C32: =C28&" "&D28 -> Päivämäärä tänään: 43748
C33: =C29&" "&D29 -> Nykyinen aika: 43748,4749277778
C35: Tekstin ja lukujen muotoilu
C36: =C28 &" "& TEXT(D28,"P\.K\.VVVV") -> Päivämäärä tänään: 10.10.2019
C37: =C29&" "&TEXT(D29,"T:MM") -> Nykyinen aika: 11:23

Sheet JOS-lausekkeet
A1: JOS-lausekkeet
A2: JOS-lausekkeiden avulla voit vertailla ehtoja loogisesti. JOS-lauseke toimii yleensä siten, että lauseke suorittaa tietyn toiminnon, kun ehto on tosi, ja muussa tapauksessa jonkin toisen toiminnon. Kaavat voivat palauttaa tekstiä, arvoja tai jopa lisää laskelmia.
A3: Kirjoita soluun D9 =JOS(C9="Omena";TOSI;EPÄTOSI) Oikea vastaus on TOSI.
A4: Kopioi solu D9 soluun D10. Vastauksen pitäisi olla EPÄTOSI, koska appelsiini ei ole omena.
A5: Kokeile toista esimerkkiä solun D12 kaavalla. Aloitit kaavalla =JOS(C12<100;"Pienempi kuin 100";"Suurempi tai yhtä suuri kuin 100"). Mitä tapahtuu, jos annat solun C12 arvoksi luvun, joka on suurempi kuin 100?
A6: TÄRKEÄ YKSITYISKOHTA TOSI ja EPÄTOSI eroavat muista Excel-kaavoissa käytetyistä sanoista, sillä niitä ei tarvitse sulkea lainausmerkkeihin. Lisäksi Excel muuntaa ne automaattisesti isoiksi kirjaimiksi. Luvutkaan eivät tarvitse lainausmerkkejä. Tavallinen teksti (esimerkiksi sanat Kyllä tai Ei) täytyy kuitenkin sulkea lainausmerkkeihin seuraavasti: =JOS(C9="Omena";"Kyllä";"Ei")
A7: Hae lisätietoja
A8: Seuraava | C8: JOS-lausekkeet
A9: JOS-lauseke yhdessä toisen funktion kanssa | C9: Omena
A10: JOS-lausekkeet voivat pakottaa myös muidenkin laskutoimitusten suorituksen, jos tietty ehto täyttyy. Tässä arvioimme solun nähdäksemme, täytyykö myyntivero periä, ja laskemme myyntiveron, jos ehdon arvo on tosi. | C10: Appelsiini
A11: Olemme lisänneet soluun F33 kaavan =JOS(E33="Kyllä";F31*Myyntivero;0), jossa olemme määrittäneet nimetyn alueen, jonka nimi on Myyntivero ja jonka arvo on 0,0825. Kaavamme sanoo, että jos solun E33 arvo on Kyllä, solu F31 kerrotaan Myyntivero-arvolla, muussa tapauksessa arvoksi palautetaan 0. Kokeile vaihtaa solun E33 Kyllä-arvo Ei-arvoksi. Näin näet, miten laskutoimitus muuttuu.
A12: Seuraavaksi olemme lisänneet JOS-lausekkeen, jolla lasketaan tarvittaessa toimituskulut. Näet solussa F35 kaavan =JOS(E35="Kyllä";SUMMA(D28:D29)*1,25;0). Tämä kaava määrittää, että jos solun E35 arvo on Kyllä, yllä olevan taulukon Määrä-sarake kerrotaan 1,25:llä, muussa tapauksessa palautetaan arvoksi nolla. | C12: 50 | D12: =IF(C12<100,"Pienempi kuin 100","Suurempi tai yhtä suuri kuin 100") -> Pienempi kuin 100
A13: Vaihda seuraavaksi solun F35 kaavan arvo 1,25 arvoon ”Toimitus”. Kun aloitat kirjoittamisen, Excelin automaattisen korjaustoiminnon pitäisi löytää se puolestasi. Kun se löytää tämän, anna tämä arvo painamalla Sarkain-näppäintä. Tämä on nimetty alue, jonka olemme antaneet valitsemalla Kaavat > Määritä nimi. Jos sinun täytyy joskus muokata toimituskuluja, sinun täytyy tehdä se vain yhdessä paikassa, sillä voit käyttää Toimitus-nimeä kaikkialla työkirjassa.
A14: HYÖDYLLISIÄ TIETOJA Kun luot kaavaa, Excel asettaa automaattisesti värilliset reunat kaikkien kaavassa viitattujen alueiden ympärille. Vastaavat alueet kaavassa ovat samanvärisiä. Näet tämän, jos valitset solun F33 ja painat F2-näppäintä muokataksesi kaavaa.
A15: ASIANTUNTIJAN VINKKI Nimettyjen alueiden avulla voit määrittää termejä ja arvoja yhdessä paikassa sekä käyttää niitä sitten koko työkirjassa. Näet kaikki tämän työkirjan nimetyt alueet valitsemalla Kaavat > Nimien hallinta. Saat lisätietoja napsauttamalla tätä.
A16: Edellinen
A17: Seuraava
A18: Lisää tietoja verkossa
A19: Kaikki JOS-funktiosta
A20: Kaikki JOS.JOUKKO-funktiosta
A21: Kehittyneet JOS-lausekkeet
A22: Maksuton Excel-koulutus verkossa
C27: Kohde | D27: Määrä | E27: Hinta | F27: Yhteensä
C28: Vekotin | D28: 2 | E28: 9.76 € | F28: ='JOS-lausekkeet'!$E$28:$E$29*'JOS-lausekkeet'!$D$28:$D$29 -> 19.52 €
C29: Vimpain | D29: 3 | E29: 3.42 € | F29: ='JOS-lausekkeet'!$E$28:$E$29*'JOS-lausekkeet'!$D$28:$D$29 -> 10.26 €
D31: Välisumma | E31: =SUM('JOS-lausekkeet'!$E$28:$E$29) -> 13.18 € | F31: =SUM('JOS-lausekkeet'!F28:F29) -> 29.78 €
D33: Peritäänkö myyntivero? | E33: Kyllä | F33: =IF(E33="Kyllä",F31*Myyntivero,0) -> 2.46 €
D35: Peritäänkö toimitusmaksu | E35: Kyllä | F35: =IF(E35="Kyllä",SUM(D28:D29)*1.25,0) -> 6.25 €
D37: Yhteensä | F37: =SUM(F33,F31,F35) -> 38.48 €

Sheet PHAKU
A1: PHAKU
A2: PHAKU on yksi Excelin eniten käytetyistä funktioista (ja myös yksi omista suosikeistamme). PHAKU-funktio hakee arvon vasemmalla olevasta sarakkeesta, palaa sitten oikealla olevan sarakkeen tietoihin ja etsii siitä vastineen ensin haetulle arvolle. PHAKU-funktio sanoo siis seuraavaa:
A3: =PHAKU(A1;B:C;2;EPÄTOSI)
A4: Mitä aluetta haluat hakea?
A5: Jos se löytyy, kuinka monen sarakkeen päästä oikealta haluat hakea arvon?
A6: Mistä haluat hakea sitä?
A7: Haluatko tarkan vai summittaisen vastineen?
A8: Kirjoita soluun D22 =PHAKU(C22;C17:D20;2;EPÄTOSI). Oikea vastaus omenoille on 50. PHAKU-funktio etsi Omenat-arvon, löysi sen, siirtyi sitten oikealla olevaan sarakkeeseen ja palautti määrän.
A9: Kokeile nyt tätä itse Liha-osiossa solussa G22. Kaavan pitäisi olla =PHAKU(F22;F17:G20;2;EPÄTOSI).
A10: KOKEILE Kokeile valita eri kohteita avattavista luetteloista. Näet, että tulossolujen tulokset päivittyvät heti.
A11: Saat lisätietoja alla
A12: Seuraava
A13: PHAKU-funktio ja #PUUTTUU
A14: Joskus törmäät varmasti tilanteeseen, jossa PHAKU-funktio ei löydä etsimäänsä, jolloin Excel palauttaa virheen (#PUUTTUU). Joskus tämä johtuu siitä, että haettavaa arvoa ei ole olemassa, mutta tämä voi johtua myös siitä, että viitatussa solussa ei ole vielä arvoa.
A15: Jos tiedät, että haettava arvo on olemassa, ja haluat piilottaa virheen, jos haettava solu on tyhjä, voit käyttää JOS-lauseketta. Tässä tapauksessa muokkaamme solun D43 nykyistä PHAKU-kaavaa seuraavasti: =JOS(C43="";"";PHAKU(C43;C37:D41;2;EPÄTOSI)) Tämä sanoo, että jos solun C43 arvo on yhtä suuri kuin tyhjä (""), mitään ei palauteta, mutta muussa tapauksessa palautetaan PHAKU-funktion tulokset. Huomaathan, että kaavan lopussa on kaksi sulkumerkkiä. Toinen sulkumerkki sulkee JOS-lausekkeen.
A16: Jos et ole varma, onko haettava arvo olemassa, ja haluat silti ohittaa #PUUTTUU-virheen, voit käyttää virheenkäsittelyn JOSVIRHE-funktiota solussa G43: =JOSVIRHE(PHAKU(F43;F37:G41;2;EPÄTOSI),""). JOSVIRHE-funktio määrittää sen, että jos PHAKU-funktio palauttaa kelvollisen tuloksen, se näytetään, mutta muussa tapauksessa ei näytetä mitään (""). Tässä ei näytetä mitään (""), mutta voit käyttää arvoina myös numeroita (0,1, 2 jne.) tai tekstiä (esimerkiksi "Kaava ei ole oikein"). | C16: Hedelmät | D16: Määrä | F16: Liha | G16: Määrä
A17: TÄRKEÄ YKSITYISKOHTA JOSVIRHE-funktio on niin sanottu yleinen virheenkäsittelyfunktio, mikä tarkoittaa sitä, että se ohittaa minkä tahansa kaavan palauttaman virheen. Tämä saattaa aiheuttaa ongelmia, jos Excel antaa sinulle ilmoituksen kaavan todellisesta virheestä, joka pitäisi korjata. Yleensä virheenkäsittelyfunktioita ei kannata lisätä kaavoihin, ennen kuin olet ehdottoman varma kaavan toimivuudesta. | C17: Omenat | D17: 50 | F17: Naudanliha | G17: 50
A18: Edellinen | C18: Appelsiinit | D18: 20 | F18: Kana | G18: 30
A19: Seuraava | C19: Banaanit | D19: 60 | F19: Sianliha | G19: 10
A20: Lisää tietoja verkossa | C20: Sitruunat | D20: 40 | F20: Kala | G20: 50
A21: Kaikki PHAKU-funktiosta
A22: Kaikki INDEKSI- ja VASTINE-funktioista | C22: Omenat | F22: Sianliha
A23: Kaikki JOSVIRHE-funktiosta
A24: Laskentataulukon tietojen analysointi Pivot-taulukoilla
A25: Maksuton Excel-koulutus verkossa
C35: Jos solun D42 SUMMA-funktio voisi puhua, se sanoisi: laske yhteen arvot soluista D38, D39, D40 ja D41.
C36: Kohde | D36: Määrä | F36: Kohde | G36: Määrä
C37: Leivät | D37: 50 | F37: Leivät | G37: 50
C38: Donitsit | D38: 100 | F38: Donitsit | G38: 100
C39: Pikkuleivät | D39: 40 | F39: Pikkuleivät | G39: 40
C40: Kakut | D40: 50 | F40: Kakut | G40: 50
C41: Piirakat | D41: 20 | F41: Piirakat | G41: 20
D43: =VLOOKUP(C43,C37:D41,2,FALSE) ->  | F43: Leivonnaiset | G43: =IFERROR(VLOOKUP(F43,F37:G41,2,FALSE),"") -> 

Sheet Ehdolliset funktiot
A1: Ehdolliset funktiot: SUMMA.JOS
A2: Ehdollisten funktioiden avulla voit laskea summan, keskimäärän, määrän ja alueen suurimman tai pienimmän arvon määrittämäsi ehdon tai määrittämiesi ehtojen perusteella. Voit laskea esimerkiksi sen, kuinka monta omenaa hedelmien luettelossa on tai kuinka moni appelsiini on Florida-appelsiini. | C2: Hedelmät | D2: Määrä | F2: Hedelmät | G2: Tyyppi | H2: Määrä | Z2: Hedelmät | AB2: Omenat | AD2: Appelsiinit | AF2: Banaanit | AH2: Sitruunat
A3: SUMMA.JOS-funktiolla voit laskea yhden alueen summan sellaisen ehdon perusteella, joka haetaan toiselta alueelta. Näin voit laskea esimerkiksi omenoiden määrä. Valitse solu D17 ja kirjoita siihen =SUMMA.JOS(C3:C14;C17;D3:D14). SUMMA.JOS muotoillaan seuraavasti: | C3: Omenat | D3: 50 | F3: Omenat | G3: Fuji | H3: 50 | Z3: Omenat | AB3: Fuji | AD3: Florida | AF3: Cavendish | AH3: Rough
A4: =SUMMA.JOS(C3:C14;C17;D3:D14) | C4: Appelsiinit | D4: 20 | F4: Appelsiinit | G4: Florida | H4: 20 | Z4: Appelsiinit | AB4: Honeycrisp | AD4: Navel | AF4: Lady Finger | AH4: Eureka
A5: Mitä aluetta haluat tarkastella? | C5: Banaanit | D5: 60 | F5: Banaanit | G5: Cavendish | H5: 60 | Z5: Banaanit
A6: Mitä arvoa (teksti tai luku) haluat etsiä? | C6: Sitruunat | D6: 40 | F6: Sitruunat | G6: Rough | H6: 40 | Z6: Sitruunat
A7: Millä alueella haluat laskea summan jokaiselle löydetylle osumalle? | C7: Omenat | D7: 50 | F7: Omenat | G7: Honeycrisp | H7: 50
A8: SUMMA.JOS.JOUKKO on sama kuin SUMMA.JOS, mutta siinä voit käyttää useita ehtoja. Tässä esimerkissä voit siis etsiä sekä tiettyä hedelmää ja tyyppiä pelkän hedelmän sijasta. Valitse solu H17 ja kirjoita =SUMMA.JOS.JOUKKO(H3:H14;F3:F14;F17;G3:G14;G17). SUMMA.JOS.JOUKKO muotoillaan seuraavasti: | C8: Appelsiinit | D8: 20 | F8: Appelsiinit | G8: Navel | H8: 20
A9: =SUMMA.JOS.JOUKKO(H3:H14;F3:F14;F17;G3:G14;G17) | C9: Banaanit | D9: 60 | F9: Banaanit | G9: Lady Finger | H9: 60
A10: Minkä alueen summan haluat laskea? | C10: Sitruunat | D10: 40 | F10: Sitruunat | G10: Eureka | H10: 40
A11: Tämä on ensimmäinen alue, jolta etsitään vastaavuuksia | C11: Omenat | D11: 50 | F11: Omenat | G11: Honeycrisp | H11: 50
A12: Tämä on ensimmäisen osuman ehto | C12: Appelsiinit | D12: 20 | F12: Appelsiinit | G12: Navel | H12: 20
A13: Tämä on toinen alue, jolta etsitään vastaavuuksia | C13: Banaanit | D13: 60 | F13: Banaanit | G13: Cavendish | H13: 60
A14: Tämä on toisen osuman ehto | C14: Sitruunat | D14: 40 | F14: Sitruunat | G14: Eureka | H14: 40
A15: ASIANTUNTIJAN VINKKI Jokaisessa Hedelmä- ja Tyyppi-solussa on avattava luettelo, jossa voit valita erilaisia hedelmiä. Kokeile sitä: näet, miten kaavat päivittyvät automaattisesti.
A16: Saat lisätietoja alla | C16: Hedelmät | D16: SUMMA.JOS | F16: Hedelmät | G16: Tyyppi | H16: SUMMA.JOS.JOUKKO
A17: Seuraava vaihe | C17: Omenat | F17: Appelsiinit | G17: Florida
A18: Ehdolliset funktiot: LASKE.JOS
A19: LASKE.JOS- ja LASKE.JOS.JOUKKO-funktioiden avulla voit laskea alueen arvojen määrän määrittämiesi ehtojen perusteella. Ne eroavat hieman muista JOS- ja JOS.JOUKKO-funktioista, sillä niillä on vain ehtoalue ja ehdot. Ne eivät laske yhtä aluetta ja laske sitten tulosta toisen alueen avulla.
A20: Valitse solu D64 ja kirjoita siihen =LASKE.JOS(C50:C61;C64). LASKE.JOS muotoillaan seuraavasti:
A21: =LASKE.JOS(C50:C61;C64)
A22: Mitä aluetta haluat tarkastella?
A23: Mitä arvoa (teksti tai luku) haluat etsiä?
A24: LASKE.JOS.JOUKKO on sama kuin LASKE.JOS, mutta siinä voit käyttää useita ehtoja. Tässä esimerkissä voit siis etsiä sekä tiettyä hedelmää ja tyyppiä pelkän hedelmän sijasta. Valitse solu H64 ja kirjoita siihen =LASKE.JOS.JOUKKO(F50:F61;F64;G50:G61;G64). LASKE.JOS.JOUKKO muotoillaan seuraavasti:
A25: =LASKE.JOS.JOUKKO(F50:F61;F64;G50:G61;G64)
A26: Tämä on ensimmäinen alue, joka lasketaan
A27: Tämä on ensimmäisen osuman ehto
A28: Tämä on toinen alue, joka lasketaan
A29: Tämä on toisen osuman ehto
A30: Saat lisätietoja alla
A31: Seuraava
A32: Lisää ehdollisia funktioita
A33: Olet jo tutustunut SUMMA.JOS-, SUMMA.JOS-JOUKKO-, LASKE.JOS- JA LASKE.JOS-JOUKKO-funktioihin. Seuraavaksi voit kokeilla omatoimisesti muitakin funktioita, esimerkiksi KESKIARVO.JOS.JOUKKO-, MAKS.JOS.JOUKKO- ja MIN.JOS.JOUKKO-funktioita. Niillä kaikilla on samanlainen rakenne, joten kun olet kirjoittanut yhden kaavan, voit vain korvata funktion nimen haluamallasi toisen funktion nimellä. Olemme kirjoittaneet kaikki tarvitsemasi funktiot soluun 106, joten voit kopioida ja liittää niitä. Tietysti voit harjoitella funktioiden kirjoittamista kokonaan itse. SUMMA.JOS =SUMMA.JOS(C92:C103;C106;E92:E103) SUMMA.JOS.JOUKKO =SUMMA.JOS.JOUKKO(E92:E103;C92:C103;C106;D92:D103;D106) KESKIARVO.JOS =KESKIARVO.JOS(C92:C103;C106;E92:E103) KESKIARVO.JOS.JOUKKO =KESKIARVO.JOS.JOUKKO(E92: E103;C92:C103;C106;D92:D103;D106) LASKE.JOS =LASKE.JOS(C92:C103;C106) LASKE.JOS.JOUKKO =LASKE.JOS.JOUKKO(C92:C103;C106;D92:D103;D106) MAKS.JOS.JOUKKO =MAKS.JOS.JOUKKO(E92: E103;C92:C103;C106;D92:D103;D106) MIN.JOS.JOUKKO =MIN.JOS.JOUKKO(E92:E103;C92:C103;C106;D92:D103;D106)
A34: Saat lisätietoja alla
A35: Seuraava
A36: SUMMA.JOS, jossa on arvoargumentti
A37: Tässä on esimerkki SUMMA.JOS-funktiosta, joka käyttää suurempi kuin -argumenttia (>), jolla se etsii kaikki annettua arvoa suuremmat arvot:
A38: =SUMIF(D118:D122,">=50") -> 200
A39: Laske yhteen arvoja tämän ehdon mukaan:
A40: ...Etsi näistä soluista...
A41: ...ja jos arvo on suurempi kuin 50, laske se summaan mukaan.
A42: HUOMAUTUS: Jos päädyt luomaan paljon ehdollisia kaavoja, kannattaa ehkä miettiä, olisiko Pivot-taulukko parempi ratkaisu. Lue lisätietoja tästä Pivot-taulukoiden artikkelista.
A43: Lisää tietoja verkossa
A44: Kaikki SUMMA.JOS-funktiosta
A45: Kaikki SUMMA.JOS.JOUKKO-funktiosta
A46: Kaikki LASKE.JOS-funktiosta
A47: Kaikki LASKE.JOS.JOUKKO-funktiosta
A48: Kaikki KESKIARVO.JOS-funktiosta
A49: Kaikki KESKIARVO.JOS.JOUKKO-funktiosta | C49: Hedelmät | D49: Määrä | F49: Hedelmät | G49: Tyyppi | H49: Määrä
A50: Kaikki MIN.JOS.JOUKKO-funktiosta | C50: Omenat | D50: 50 | F50: Omenat | G50: Fuji | H50: 50
A51: Kaikki MAKS.JOS.JOUKKO-funktiosta | C51: Appelsiinit | D51: 20 | F51: Appelsiinit | G51: Florida | H51: 20
A52: Avattavan luettelon luominen | C52: Banaanit | D52: 60 | F52: Banaanit | G52: Cavendish | H52: 60
A53: Maksuton Excel-koulutus verkossa | C53: Sitruunat | D53: 40 | F53: Sitruunat | G53: Rough | H53: 40
A54: Takaisin alkuun | C54: Omenat | D54: 50 | F54: Omenat | G54: Honeycrisp | H54: 50
A55: Seuraava | C55: Appelsiinit | D55: 20 | F55: Appelsiinit | G55: Navel | H55: 20
C56: Banaanit | D56: 60 | F56: Banaanit | G56: Lady Finger | H56: 60
C57: Sitruunat | D57: 40 | F57: Sitruunat | G57: Eureka | H57: 40
C58: Omenat | D58: 50 | F58: Omenat | G58: Honeycrisp | H58: 50
C59: Appelsiinit | D59: 20 | F59: Appelsiinit | G59: Navel | H59: 20
C60: Banaanit | D60: 60 | F60: Banaanit | G60: Cavendish | H60: 60
C61: Sitruunat | D61: 40 | F61: Sitruunat | G61: Eureka | H61: 40
C63: Hedelmät | D63: LASKE.JOS | F63: Hedelmät | G63: Tyyppi | H63: LASKE.JOS.JOUKKO
C64: Omenat | D64: =COUNTIF(C50:C61,C64) -> 3 | F64: Appelsiinit | G64: Florida | H64: =COUNTIFS(F50:F61,F64,G50:G61,G64) -> 1
C91: Hedelmät | D91: Tyyppi | E91: Määrä
C92: Omenat | D92: Fuji | E92: 50
C93: Appelsiinit | D93: Florida | E93: 20
C94: Banaanit | D94: Cavendish | E94: 60
C95: Sitruunat | D95: Rough | E95: 40
C96: Omenat | D96: Honeycrisp | E96: 50
C97: Appelsiinit | D97: Navel | E97: 20
C98: Banaanit | D98: Lady Finger | E98: 60
C99: Sitruunat | D99: Eureka | E99: 40
C100: Omenat | D100: Honeycrisp | E100: 50
C101: Appelsiinit | D101: Navel | E101: 20
C102: Banaanit | D102: Cavendish | E102: 60
C103: Sitruunat | D103: Eureka | E103: 40
C105: Hedelmät | D105: Tyyppi | E105: Kokeile
C106: Sitruunat | D106: Eureka | E106: =AVERAGEIFS(E92:E103,C92:C103,C106,D92:D103,D106) -> 40
C117: Kohde | D117: Määrä
C118: Leivät | D118: 50
C119: Donitsit | D119: 100
C120: Pikkuleivät | D120: 40
C121: Kakut | D121: 50
C122: Piirakat | D122: 20
D123: =SUMIF(D118:D122,">=50") -> 200

Sheet Ohjattu funktiotoiminto
A1: Hyödynnä ohjattua Funktio-toimintoa
A2: Jos tiedät haluamasi funktion nimen, mutta et ole varma sen rakenteesta, voit hyödyntää ohjattua Funktio-toimintoa, joka opastaa sinua.
A3: Valitse solu D10 ja sitten Kaavat > Lisää funktio > kirjoita PHAKU Etsi funktio -kenttään ja napsauta sitten Siirry-painiketta. Kun näet PHAKU-funktion korostettuna, valitse alhaalta OK. Kun valitset funktion luettelosta, Excel näyttää sen syntaksin.
A4: Tämän jälkeen voit antaa funktion argumentit niiden tekstiruutuihin. Kun annat kunkin argumentin, Excel laskee sen ja näyttää sen tuloksen. Lisäksi Excel näyttää lopputuloksen alhaalla. Kun annat kunkin argumentin arvoa, näet kunkin argumentin vaatimukset lomakkeen alareunassa. Kun olet valmis, paina OK. Excel lisää sitten kaavan puolestasi. | C4: Hedelmät | D4: Määrä
A5: TIESITKÖ TÄMÄN? Sinun pitäisi saada kaavaksi =PHAKU(C10;C5:D8;2;EPÄTOSI) | C5: Omenat | D5: 50
A6: HYÖDYLLISIÄ TIETOJA Voit kirjoittaa solu- ja alueviittaukset tai valita ne hiirellä. | C6: Appelsiinit | D6: 20
A7: HYÖDYLLISIÄ TIETOJA Kun määrität kutakin argumenttia, näet argumentin kuvauksen lomakkeen alareunassa kaavan tuloksen yläpuolella. | C7: Banaanit | D7: 60
A8: Edellinen | C8: Sitruunat | D8: 40
A9: Seuraava
A10: Lisää tietoja verkossa | C10: Omenat | D10: =VLOOKUP(C10,C5:D8,2,FALSE) -> 50
A11: Excelin kaavojen yleiskatsaus
A12: Excelin funktiot (luokittain)
A13: Excelin funktiot (aakkosjärjestyksessä)
A14: Maksuton Excel-koulutus verkossa

Sheet Kaavojen virheet
A1: Kaavojen virheiden korjaaminen
A2: Jossain vaiheessa törmäät varmasti kaavaan, jossa on virhe, jolloin Excel näyttää virheilmoituksen #VirheenNimi. Virheilmoituksista voi olla hyötyä, sillä niistä voit saada tietoa siitä, kun jokin ei toimi oikein. Virheiden korjaaminen voi kuitenkin olla vaikeaa. Onneksi tarjolla on useita vaihtoehtoja virheen alkuperän määrittämiseksi ja virheen korjaamiseksi.
A3: Virheiden korjaaminen: Valitse Kaavat > Virheentarkistus. Tämä avaa näyttöön valintaikkunan, josta näet virheesi yleisen syyn. Solun D9 #PUUTTUU!-virhe johtuu siitä, että Omena-arvoa ei löydy. Voit korjata tämän käyttämällä arvoa, joka löytyy taulukosta, ohittaa virheen JOSVIRHE-funktiolla tai ohittaa virheen kokonaan, sillä tiedät, että virhe katoaa, kun käytät arvoa, joka on olemassa taulukossa. | C3: Hedelmät | D3: Määrä
A4: Jos valitset Tämän virheen ohje, pääset virheilmoitusta käsittelevään ohjeartikkeliin. Jos valitset Näytä laskennan vaiheet, näyttöön avautuu Kaavan laskeminen -valintaikkuna. | C4: Omenat | D4: 50
A5: Aina kun napsautat Laske, Excel laskee kaavan yhden kohdan. Excel ei välttämättä kerro, miksi virhe tapahtuu, mutta se näyttää, missä se tapahtuu. Tämän jälkeen voit lukea ohjeartikkelista lisätietoja siitä, miksi kaava on virheellinen. | C5: Appelsiinit | D5: 20
A6: KOKEILE Mikä tässä on vialla? Vinkki: yritämme laskea kaikkien kohteiden SUMMAN. | C6: Banaanit | D6: 60
A7: HYÖDYLLISIÄ TIETOJA Kun napsautat Asetukset, voit määrittää asetukset sille, milloin Excelin virheet näytetään tai ohitetaan. | C7: Sitruunat | D7: 40
A8: Edellinen
A9: Seuraava | C9: Omena | D9: =VLOOKUP(C9,C3:D7,2,FALSE) -> 
A10: Lisää tietoja verkossa
A11: Kaavojen virheiden tunnistaminen
A12: Kaavojen virheiden välttäminen
A13: Sisäkkäisen kaavan laskeminen yksi vaihe kerrallaan
A14: Maksuton Excel-koulutus verkossa
C30: Hedelmät | D30: Määrä
C31: Omenat | D31: 50
C32: Appelsiinit | D32: 20
C33: Banaanit | D33: 60
C34: Sitruunat | D34: 40
C36: Yhteensä | D36: =sume(D31:D34) -> 

Sheet Lisätiedot
A1: Haluatko tietää lisää Excelistä?
A2: Paina Alt + Q ja kirjoita mitä haluat tietää.
A3: Jatka samaan tapaan. Excelistä on vielä lisää opittavaa:
A4: Yhteisö: Esitä kysymyksiä ja ota yhteyttä muihin Excel-käyttäjiin.
A5: Mitä muuta uutta on tarjolla? Office 365 -tilaajat saavat jatkuvia päivityksiä ja uusia toimintoja.
